bitfinex/quotes_ETHUSD_20230831
["timestamp","ask_amount","ask_price","bid_price","bid_amount"]
[1693492307679,0.07713783,1703.5,1703.4,31.09441245]
[1693492308496,0.07713783,1703.5,1703.4,31.09441013]
[1693492308978,0.07713783,1703.5,1703.4,30.0741682]
[1693492309544,0.07713783,1703.5,1703.4,31.09441393]
[1693492309759,0.07713783,1703.5,1703.4,30.0741682]
[1693492310686,0.07713783,1703.5,1703.4,23.8931682]
[1693492311280,0.07713783,1703.5,1703.4,30.0741682]
[1693492311477,0.07713783,1703.5,1703.4,23.8931682]
[1693492311849,0.07713783,1703.5,1703.4,30.0741682]
[1693492312265,0.07713783,1703.5,1703.4,23.8931682]
[1693492312464,0.07713783,1703.5,1703.4,6.45581]
[1693492312826,0.07713783,1703.5,1703.4,0.5852]
[1693492313032,0.07713783,1703.5,1703.4,6.45581]
[1693492313661,0.07713783,1703.5,1703.4,12.32642]
[1693492314791,0.07713783,1703.5,1703.4,15.2541633]
[1693492315091,0.07713783,1703.5,1703.4,18.3286942]
[1693492315587,0.07713783,1703.5,1703.4,24.5096942]
[1693492320450,0.07713783,1703.5,1703.4,6.45581]
[1693492324576,17.68791783,1703.5,1703.3,1.53221904]
[1693492324758,17.68791783,1703.5,1703.1,1.53221904]
[1693492325172,19.65511783,1703.5,1703.1,1.53221904]
[1693492325482,1.96551178,1703.4,1703.1,1.53221904]
[1693492325666,7.83629178,1703.4,1703.3,1.53221904]
[1693492325864,7.83629178,1703.4,1703.1,1.53221904]
[1693492325865,17.61231,1703.4,1703.1,1.53221904]
[1693492326173,19.05331,1703.4,1703.1,1.53221904]
[1693492326483,19.05511,1703.2,1702.9,1.53221904]
[1693492326693,17.61597,1703.0,1702.9,1.53221904]
[1693492326878,17.61597,1703.0,1702.9,2.55281451]
[1693492327265,17.61597,1703.0,1702.9,1.53221904]
[1693492327485,17.61597,1703.0,1702.9,2.55283225]
[1693492327689,17.61597,1703.0,1702.9,1.53221904]
[1693492327878,19.5681181,1703.0,1702.9,1.53221904]
[1693492329970,19.5681181,1703.0,1702.7,1.53221904]
[1693492334391,5.87178,1703.1,1703.0,1.53221904]
[1693492336106,11.74363,1703.1,1703.0,1.53221904]
[1693492342376,5.87099,1703.3,1703.2,1.53221904]
[1693492344289,11.74198,1703.3,1703.2,1.53221904]
[1693492345604,17.61297,1703.3,1703.2,1.53221904]
[1693492345813,19.961329,1703.3,1703.0,1.53221904]
[1693492346121,21.887629,1703.3,1703.0,1.53221904]
[1693492350145,19.53927,1703.3,1703.2,1.53221904]
[1693492351612,17.61297,1703.3,1703.2,1.53221904]
[1693492358512,19.05397,1703.3,1703.2,1.53221904]
[1693492358934,17.61297,1703.3,1703.2,1.53221904]
[1693492359349,17.61297,1703.3,1703.0,10.0]
[1693492359525,1.761297,1703.2,1703.0,10.0]
[1693492359822,11.74328,1703.1,1703.0,10.0]
[1693492360518,5.87164,1703.1,1703.0,10.0]
[1693492361023,11.74328,1703.1,1703.0,10.0]
[1693492361224,19.05592,1703.1,1703.0,10.0]
[1693492361449,21.7247827,1703.1,1703.0,10.0]
[1693492362140,15.8531427,1703.1,1703.0,10.0]
[1693492362347,21.7247827,1703.1,1703.0,10.0]
[1693492372972,11.74292,1703.2,1703.0,10.0]
[1693492373322,5.87102,1703.3,1703.2,1.53221904]
[1693492373677,5.87068,1703.4,1703.2,1.53221904]
[1693492374276,11.74144,1703.4,1703.2,1.53221904]
[1693492374581,11.74144,1703.4,1703.2,2.27257094]
[1693492375930,11.81803783,1703.5,1703.2,2.27257094]
[1693492376281,0.07713783,1703.5,1703.4,1.53221904]
[1693492379109,5.94739783,1703.5,1703.4,1.53221904]
[1693492381481,17.68791783,1703.5,1703.2,4.57357094]
[1693492381717,17.68791783,1703.5,1703.2,3.83321904]
[1693492384286,17.68791783,1703.5,1703.4,1.53221904]
[1693492388534,17.68791783,1703.5,1703.2,3.83321904]
[1693492392127,19.12891783,1703.5,1703.2,1.53221904]
[1693492392435,19.12891783,1703.5,1703.1,2.3003]
[1693492392618,11.7419,1703.3,1703.1,2.3003]
[1693492392814,17.61285,1703.3,1703.2,1.53221904]
[1693492393020,17.61285,1703.3,1703.1,2.3003]
[1693492395155,17.61285,1703.3,1703.0,11.53221904]
[1693492403764,17.61285,1703.3,1703.0,10.0]
[1693492403963,6.682285,1703.2,1703.0,10.0]
[1693492404165,19.05592,1703.1,1703.0,10.0]
[1693492406968,22.05592,1703.1,1703.0,10.0]
[1693492407132,22.53592,1703.1,1703.0,10.0]
[1693492407332,26.691935,1703.1,1703.0,10.0]
[1693492407666,30.86511396,1703.1,1703.0,10.0]
[1693492408063,29.63684226,1703.1,1703.0,10.0]
[1693492408227,30.86511396,1703.1,1703.0,10.0]
[1693492408596,29.63684226,1703.1,1703.0,10.0]
[1693492411732,31.10462322,1703.1,1703.0,10.0]
[1693492411950,31.10462322,1703.1,1702.4,2.4339]
[1693492412146,17.61927,1702.7,1702.4,2.4339]
[1693492412348,19.06027,1702.7,1702.4,2.4339]
[1693492413581,17.61927,1702.7,1702.4,2.4339]
[1693492419115,5.87285,1702.8,1702.4,11.5426433]
[1693492419296,11.74365,1703.1,1702.7,2.97321904]
[1693492419502,5.87139,1703.2,1702.9,2.97321904]
[1693492419721,11.74217,1703.3,1703.1,1.53221904]
[1693492419994,11.74228,1703.3,1703.1,1.53221904]
[1693492422528,11.74151,1703.4,1703.1,1.53221904]
[1693492422674,5.87095,1703.3,1703.1,1.53221904]
[1693492428192,5.87095,1703.3,1703.1,8.73135294]
[1693492428395,5.87069,1703.4,1703.1,8.73135294]
[1693492428396,29.88713783,1703.5,1703.4,1.53221904]
[1693492428905,0.07713783,1703.5,1703.4,7.40282904]
[1693492429123,0.07713783,1703.5,1703.4,13.27343904]
[1693492430131,0.07713783,1703.5,1703.4,7.40282904]
[1693492437755,11.81765783,1703.5,1703.2,2.5478]
[1693492437908,5.87063,1703.4,1703.2,12.87903234]
[1693492438107,0.07713783,1703.5,1703.2,18.75033234]
[1693492438108,11.81802783,1703.5,1703.2,18.75033234]
[1693492438325,17.68846783,1703.5,1703.2,4.08001904]
[1693492438506,11.7419,1703.3,1703.2,4.08001904]
[1693492438922,11.7419,1703.3,1703.2,1.53221904]
[1693492439341,5.87095,1703.3,1703.2,1.53221904]
[1693492440414,11.74145,1703.4,1703.2,1.53221904]
[1693492440741,5.94746783,1703.5,1703.2,1.53221904]
[1693492440742,0.07713783,1703.5,1703.4,1.53221904]
[1693492440941,0.07713783,1703.5,1703.4,13.27343904]
[1693492441244,0.07713783,1703.5,1703.4,15.62475127]
[1693492443614,0.07713783,1703.5,1703.4,7.40282904]
[1693492445339,0.07713783,1703.5,1703.4,13.27343904]
[1693492447172,0.07713783,1703.5,1703.4,23.51279234]
[1693492450445,0.07713783,1703.5,1703.4,17.64218234]
[1693492451136,0.07713783,1703.5,1703.4,23.51279234]
[1693492451436,0.07713783,1703.5,1703.4,27.06925157]
[1693492452139,0.07713783,1703.5,1703.4,19.75764157]
[1693492452681,0.07713783,1703.5,1703.4,25.62825157]
[1693492456082,0.07713783,1703.5,1703.4,27.06925157]
[1693492462593,0.07713783,1703.5,1703.4,28.08961064]
[1693492464488,0.07713783,1703.5,1703.4,28.7048918]
[1693492465690,0.07713783,1703.5,1703.4,29.62781354]
[1693492466493,0.07713783,1703.5,1703.4,29.01253238]
[1693492466694,0.07713783,1703.5,1703.4,27.57153238]
[1693492466992,0.07713783,1703.5,1703.4,28.18674183]
[1693492467505,0.07713783,1703.5,1703.4,27.57153238]
[1693492468465,0.07713783,1703.5,1703.4,15.8321423]
[1693492469766,0.07713783,1703.5,1703.4,14.90922056]
[1693492470100,0.07713783,1703.5,1703.4,3.16800056]
[1693492470327,0.07713783,1703.5,1703.4,2.55257811]
[1693492474913,0.07713783,1703.5,1703.4,8.42318811]
[1693492475411,0.07713783,1703.5,1703.4,7.40282904]
[1693492476288,6.55221861,1703.5,1703.4,1.53221904]
[1693492477911,19.73373861,1703.5,1703.2,1.53221904]
[1693492478308,13.86347861,1703.5,1703.2,1.53221904]
[1693492478480,13.86347861,1703.5,1703.2,7.40340904]
[1693492478679,1.38634786,1703.4,1703.2,7.40340904]
[1693492478886,7.25696786,1703.4,1703.2,7.40340904]
[1693492479106,7.25696786,1703.4,1703.2,13.27470904]
[1693492479310,5.87062,1703.4,1703.2,13.27470904]
[1693492480193,5.87062,1703.4,1703.2,7.40340904]
[1693492480597,0.07713783,1703.5,1703.4,1.53221904]
[1693492480817,0.07713783,1703.5,1703.4,13.27343904]
[1693492481008,0.07713783,1703.5,1703.4,15.18784894]
[1693492484924,0.07713783,1703.5,1703.4,13.27343904]
[1693492489832,0.07713783,1703.5,1703.4,7.40282904]
[1693492490021,0.07713783,1703.5,1703.4,1.53221904]
[1693492490022,5.94739783,1703.5,1703.4,1.53221904]
[1693492492700,11.81765783,1703.5,1703.4,1.53221904]
[1693492499241,17.68791783,1703.5,1703.2,1.53221904]
[1693492499422,1.76879178,1703.4,1703.2,1.53221904]
[1693492499737,13.51034178,1703.4,1703.2,1.53221904]
[1693492504279,19.38126178,1703.4,1703.0,1.53221904]
[1693492504494,20.61211208,1703.4,1703.0,1.53221904]
[1693492504634,19.0549,1703.2,1703.0,1.53221904]
[1693492504835,1.90549,1703.1,1703.0,1.53221904]
[1693492505079,11.74328,1703.1,1703.0,1.53221904]
[1693492505258,17.61492,1703.1,1703.0,1.53221904]
[1693492505461,17.61492,1703.1,1702.7,1.53221904]
[1693492505665,20.91192,1703.1,1702.7,1.53221904]
[1693492510445,13.59928,1703.1,1702.7,15.60487904]
[1693492510785,13.59928,1703.1,1702.8,1.5604879]
[1693492510990,13.59928,1703.1,1702.7,15.60471904]
[1693492511190,13.59928,1703.1,1702.7,9.73177904]
[1693492512441,5.87164,1703.1,1703.0,1.53221904]
[1693492514591,11.74328,1703.1,1703.0,1.53221904]
[1693492520727,5.94759783,1703.5,1703.3,1.53221904]
[1693492520875,0.07713783,1703.5,1703.3,7.40296904]
[1693492521484,0.07713783,1703.5,1703.3,13.27391904]
[1693492527031,0.07713783,1703.5,1703.4,1.441]
[1693492527191,0.07713783,1703.5,1703.4,15.2408069]
[1693492527723,0.07713783,1703.5,1703.4,13.7998069]
[1693492532621,0.07713783,1703.5,1703.4,14.07779203]
[1693492532817,0.07713783,1703.5,1703.4,19.94840203]
[1693492533021,0.07713783,1703.5,1703.4,19.95431744]
[1693492535243,5.94739783,1703.5,1703.4,0.28390054]
[1693492539926,11.81765783,1703.5,1703.4,0.28390054]
[1693492543058,5.94739783,1703.5,1703.4,0.28390054]
[1693492543259,0.07713783,1703.5,1703.4,0.28390054]
[1693492544460,0.07713783,1703.5,1703.4,6.15451054]
[1693492545739,0.07713783,1703.5,1703.4,0.28390054]
[1693492546759,5.94739783,1703.5,1703.4,0.28390054]
[1693492550564,5.94739783,1703.5,1703.3,7.40294904]
[1693492550565,13.20012361,1703.5,1703.3,0.81611958]
[1693492550864,13.20012361,1703.5,1703.4,0.27540459]
[1693492553055,7.32986361,1703.5,1703.4,0.27540459]
[1693492553563,0.07713783,1703.5,1703.4,0.27540459]
[1693492556769,5.94739783,1703.5,1703.4,0.27540459]
[1693492557857,11.81765783,1703.5,1703.4,0.27540459]
[1693492568885,13.04591912,1703.5,1703.4,0.27540459]
[1693492569286,11.81765783,1703.5,1703.4,0.27540459]
[1693492572684,5.94739783,1703.5,1703.4,0.27540459]
[1693492572882,0.07713783,1703.5,1703.4,12.01662459]
[1693492573087,0.07713783,1703.5,1703.4,19.90168201]
[1693492580302,0.07713783,1703.5,1703.4,14.03107201]
[1693492583012,0.07713783,1703.5,1703.4,6.14601459]
[1693492583873,0.07713783,1703.5,1703.4,12.01662459]
[1693492586716,0.07713783,1703.5,1703.4,0.27540459]
[1693492587021,0.07713783,1703.5,1703.4,12.01662459]
[1693492587876,11.81765783,1703.5,1703.4,0.27540459]
[1693492588089,6.55220661,1703.5,1703.4,0.27540459]
[1693492588288,12.42246661,1703.5,1703.4,0.27540459]
[1693492588492,6.55220661,1703.5,1703.4,0.27540459]
[1693492595485,12.42246661,1703.5,1703.4,0.27540459]
[1693492599533,11.81765783,1703.5,1703.4,0.27540459]
[1693492601014,18.92053956,1703.5,1703.4,0.27540459]
[1693492601211,25.05666113,1703.5,1703.4,0.27540459]
[1693492601414,25.53666113,1703.5,1703.4,0.27540459]
[1693492601592,27.38559373,1703.5,1703.4,0.00569323]
[1693492601793,28.8723155,1703.5,1703.4,0.00569323]
[1693492601993,28.8723155,1703.5,1702.9,0.81611958]
[1693492602202,2.67356466,1703.3,1702.9,0.81611958]
[1693492602386,17.61411,1703.2,1702.9,0.81611958]
[1693492602738,17.61411,1703.2,1703.1,0.81611958]
[1693492602896,13.77150747,1703.2,1703.1,0.81611958]
[1693492603288,13.77150747,1703.2,1703.1,1.05461645]
[1693492604024,13.77150747,1703.2,1703.1,1.05966794]
[1693492604228,11.74274,1703.2,1703.1,1.05966794]
[1693492604726,5.87137,1703.2,1703.1,1.05966794]
[1693492606907,7.75059,1703.4,1703.3,0.81611958]
[1693492607101,5.87069,1703.4,1703.3,0.81611958]
[1693492607981,5.87069,1703.4,1703.3,0.82115661]
[1693492610284,11.74144,1703.4,1703.3,0.82115661]
[1693492612551,5.87069,1703.4,1703.3,0.82115661]
[1693492612749,5.87069,1703.4,1703.3,1.14972227]
[1693492613710,11.7413,1703.4,1703.3,0.82115661]
[1693492617153,17.61191,1703.4,1703.3,0.00503703]
[1693492617649,19.42351,1703.4,1703.3,0.00503703]
[1693492618016,19.42351,1703.4,1703.1,3.35491645]
[1693492618416,19.42351,1703.4,1703.3,0.23114223]
[1693492618614,22.22022829,1703.4,1703.3,0.23114223]
[1693492618850,20.40862829,1703.4,1703.3,0.23114223]
[1693492619013,20.40862829,1703.4,1703.3,0.00503703]
[1693492620050,20.40862829,1703.4,1703.1,0.81611958]
[1693492620969,20.40862829,1703.4,1703.2,0.00504426]
[1693492621132,2.04086283,1703.3,1703.2,0.00504426]
[1693492621333,19.65371283,1703.3,1703.2,0.00504426]
[1693492627938,21.46391283,1703.3,1702.9,3.30011958]
[1693492628571,21.46391283,1703.3,1702.9,0.81611958]
[1693492628572,1.441,1703.2,1702.9,0.81611958]
[1693492628845,17.61492,1703.1,1702.9,0.81611958]
[1693492629072,19.520512,1703.1,1703.0,0.00486165]
[1693492631546,20.961512,1703.1,1703.0,0.00486165]
[1693492631746,26.430012,1703.1,1703.0,0.00486165]
[1693492631951,26.430012,1703.1,1702.7,0.81611958]
[1693492632376,26.430012,1703.1,1702.8,0.23073714]
[1693492632574,2.6430012,1703.0,1702.8,0.23073714]
[1693492632791,11.74466,1702.9,1702.8,0.23073714]
[1693492634381,17.61699,1702.9,1702.8,0.23073714]
[1693492635975,17.61699,1702.9,1702.8,0.23561325]
[1693492644535,11.74466,1702.9,1702.8,0.23561325]
[1693492658261,8.8717,1703.1,1702.8,0.23561325]
[1693492658472,5.8717,1703.1,1703.0,0.81611958]
[1693492658965,5.8717,1703.1,1703.0,1.05182805]
[1693492659128,11.74292,1703.2,1703.0,1.40987086]
[1693492660958,11.74292,1703.2,1703.0,1.40500921]
[1693492661969,11.74292,1703.2,1703.1,0.00485442]
[1693492663171,11.74292,1703.2,1703.1,0.23557995]
[1693492668376,1.23082887,1703.3,1703.1,0.23557995]
[1693492668854,7.10195887,1703.3,1703.1,0.9279339]
[1693492669039,7.10195887,1703.3,1703.1,0.23557995]
[1693492670463,12.97308887,1703.3,1703.1,0.23557995]
[1693492671383,14.51162496,1703.3,1703.1,0.23557995]
[1693492672980,1.23082887,1703.2,1703.1,0.23557995]
[1693492673175,7.10212887,1703.2,1703.1,0.23557995]
[1693492674140,1.23082887,1703.2,1703.1,0.23557995]
[1693492675075,14.51161496,1703.3,1703.1,0.23557995]
[1693492675282,12.97307887,1703.3,1703.1,0.23557995]
[1693492677170,7.10194887,1703.3,1703.1,0.23557995]
[1693492677656,12.97323887,1703.3,1703.1,0.23557995]
[1693492678175,12.97323887,1703.3,1703.2,0.81611958]
[1693492678586,12.97323887,1703.3,1703.2,1.04631026]
[1693492678746,11.74241,1703.3,1703.2,1.04631026]
[1693492678948,11.74241,1703.3,1703.2,1.05115745]
[1693492685715,39.42945615,1703.6,1703.4,0.81611958]
[1693492685716,40.34165496,1703.6,1703.4,0.81611958]
[1693492686007,36.91081887,1703.6,1703.4,0.81611958]
[1693492686208,42.78094887,1703.6,1703.4,0.81611958]
[1693492686584,41.55012,1703.6,1703.4,0.81611958]
[1693492686990,41.55012,1703.6,1703.5,0.00482551]
[1693492687186,11.74012,1703.6,1703.5,0.00482551]
[1693492693188,11.74012,1703.6,1703.5,0.2340859]
[1693492716467,13.69035,1703.6,1703.5,0.2340859]
[1693492720399,19.56048,1703.6,1703.5,0.2340859]
[1693492720601,15.13135,1703.6,1703.5,0.2340859]
[1693492722271,15.13129,1703.6,1703.5,0.2340859]
[1693492722491,16.36279583,1703.6,1703.5,0.2340859]
[1693492722703,21.00136,1703.6,1703.5,0.2340859]
[1693492722904,22.23286583,1703.6,1703.5,0.2340859]
[1693492723695,20.79186583,1703.6,1703.5,0.2340859]
[1693492724407,14.92179583,1703.6,1703.5,0.2340859]
[1693492725515,20.79186583,1703.6,1703.5,0.2340859]
[1693492725699,14.92179583,1703.6,1703.5,0.2340859]
[1693492727324,16.46117812,1703.6,1703.5,0.2340859]
[1693492727993,15.22967229,1703.6,1703.5,0.2340859]
[1693492729420,14.51191616,1703.6,1703.5,0.2340859]
[1693492729636,13.27944229,1703.6,1703.5,0.2340859]
[1693492730694,14.51238026,1703.6,1703.5,0.2340859]
[1693492731023,14.51237726,1703.6,1703.5,0.2340859]
[1693492731222,14.51238931,1703.6,1703.5,0.2340859]
[1693492731395,13.27944229,1703.6,1703.5,0.2340859]
[1693492732789,21.58248339,1703.6,1703.5,0.2340859]
[1693492732985,17.15341339,1703.6,1703.5,0.2340859]
[1693492733186,26.25910315,1703.6,1703.5,0.00482551]
[1693492733493,30.29117931,1703.6,1703.5,0.00482551]
[1693492733928,30.29117931,1703.6,1703.0,0.81611958]
[1693492734228,17.6139,1703.2,1703.0,0.81611958]
[1693492734427,17.6139,1703.2,1703.1,0.22293196]
[1693492734825,11.7426,1703.2,1703.1,0.22293196]
[1693492735026,11.7426,1703.2,1703.1,0.22759772]
[1693492735594,17.6139,1703.2,1703.1,0.22759772]
[1693492737633,11.7426,1703.2,1703.1,0.22759772]
[1693492739392,13.82239275,1703.2,1703.1,0.22759772]
[1693492740206,19.69369275,1703.2,1703.1,0.22759772]
[1693492740939,13.82239275,1703.2,1703.1,0.22759772]
[1693492742425,11.7426,1703.2,1703.1,0.22759772]
[1693492742739,17.6139,1703.2,1703.1,0.22759772]
[1693492754080,11.7426,1703.2,1703.1,0.22759772]
[1693492755169,17.6139,1703.2,1703.1,0.22759772]
[1693492768106,11.7426,1703.2,1703.1,0.22759772]
[1693492775910,1.22969269,1703.4,1703.3,0.81611958]
[1693492776109,11.74088,1703.5,1703.3,0.81611958]
[1693492776426,11.74088,1703.5,1703.3,1.03210551]
[1693492776427,5.87041,1703.5,1703.3,1.03210551]
[1693492777122,5.87041,1703.5,1703.4,0.00464531]
[1693492777995,5.87041,1703.5,1703.3,1.97124306]
[1693492781011,5.87041,1703.5,1703.4,0.00464531]
[1693492782119,5.87041,1703.5,1703.3,1.97124306]
[1693492783027,5.87041,1703.5,1703.4,0.00464531]
[1693492783331,5.87041,1703.5,1703.4,0.22041353]
[1693492786645,5.8701,1703.6,1703.5,0.81611958]
[1693492787022,5.8701,1703.6,1703.5,0.82075766]
[1693492790963,5.86962,1703.7,1703.5,1.16884025]
[1693492793232,11.73934,1703.7,1703.5,0.82075766]
[1693492793456,17.60906,1703.7,1703.5,0.82075766]
[1693492793657,1.441,1703.6,1703.5,0.82075766]
[1693492793859,13.18084,1703.6,1703.5,0.82075766]
[1693492795560,1.441,1703.5,1703.4,0.21576822]
[1693492795763,29.89775741,1703.5,1703.4,0.21576822]
[1693492795936,29.89775741,1703.5,1703.1,0.81611958]
[1693492796264,1.441,1703.2,1703.1,0.81611958]
[1693492796442,13.1836,1703.2,1703.1,0.81611958]
[1693492797164,13.1836,1703.2,1703.1,0.82042702]
[1693492797377,15.281085,1703.2,1703.1,0.82042702]
[1693492798331,15.281085,1703.2,1703.1,1.03697539]
[1693492800243,13.840085,1703.2,1703.1,1.03697539]
[1693492800852,11.7426,1703.2,1703.1,1.03697539]
[1693492801056,5.8713,1703.2,1703.1,1.03697539]
[1693492801652,5.87041,1703.5,1703.1,12.78025539]
[1693492801860,5.87041,1703.5,1703.4,0.81611958]
[1693492802987,5.87041,1703.5,1703.4,0.82040533]
[1693492812268,15.136304,1703.5,1703.4,0.00428575]
[1693492812468,21.006734,1703.5,1703.4,0.82040533]
[1693492813091,21.006734,1703.5,1703.4,0.21998157]
[1693492813805,21.006734,1703.5,1703.4,1.03610115]
[1693492814711,15.136304,1703.5,1703.4,1.03610115]
[1693492816307,13.18184,1703.5,1703.4,1.03610115]
[1693492816507,5.87041,1703.5,1703.4,1.03610115]
[1693492828741,5.87041,1703.5,1703.4,1.03610115]
[1693492832340,5.87041,1703.5,1703.4,1.27941918]
[1693492833041,5.87041,1703.5,1703.4,1.28174255]
[1693492842833,7.77319,1703.6,1703.4,1.28174255]
[1693492843130,13.64331,1703.6,1703.4,1.28174255]
[1693492843951,14.8742075,1703.6,1703.4,1.28174255]
[1693492846374,17.10245444,1703.6,1703.4,1.28174255]
[1693492850845,14.8742075,1703.6,1703.4,1.28174255]
[1693492851166,12.9710075,1703.6,1703.4,1.28174255]
[1693492852244,1.2308975,1703.5,1703.4,1.28174255]
[1693492852446,14.50962937,1703.6,1703.4,1.28174255]
[1693492853180,1.2308975,1703.5,1703.4,1.28174255]
[1693492853342,12.9710075,1703.6,1703.4,1.28174255]
[1693492858515,11.74011,1703.6,1703.4,1.28174255]
[1693492858672,12.97166599,1703.6,1703.4,1.28174255]
[1693492867114,5.86999,1703.6,1703.4,1.28174255]
[1693492867414,5.97043,1703.8,1703.4,1.28174255]
[1693492867415,1.33255599,1703.8,1703.6,0.81611958]
[1693492867619,0.101,1703.8,1703.6,0.81611958]
[1693492868108,0.101,1703.8,1703.7,0.00658789]
[1693492872724,13.07072599,1703.9,1703.7,0.00658789]
[1693492872928,13.0685897,1703.9,1703.7,0.00658789]
[1693492873220,11.83917,1703.9,1703.8,0.81611958]
[1693492873416,11.83917,1703.9,1703.8,1.27399603]
[1693492874122,11.83917,1703.9,1703.8,1.28056909]
[1693492876503,5.97003,1703.9,1703.8,1.28056909]
[1693492878157,7.80876,1704.0,1703.8,1.644906]
[1693492878362,5.86886,1704.0,1703.8,1.644906]
[1693492879811,11.83762,1704.1,1704.0,0.81611958]
[1693492880512,5.96924,1704.1,1704.0,0.81611958]
[1693492880913,5.96924,1704.1,1704.0,0.82267494]
[1693492886546,5.96924,1704.1,1704.0,1.15916243]
[1693492886755,0.101,1704.1,1704.0,1.15916243]
[1693492888318,0.101,1704.1,1704.0,1.61650853]
[1693492890168,0.101,1704.1,1704.0,14.79458853]
[1693492896446,0.101,1704.1,1704.0,1.28002104]
[1693492900478,0.101,1704.1,1704.0,7.14856104]
[1693492907662,0.101,1704.1,1704.0,1.28002104]
[1693492908263,0.101,1704.1,1704.0,7.14856104]
[1693492912664,0.101,1704.1,1704.0,13.01710104]
[1693492912860,0.101,1704.1,1704.0,15.15990114]
[1693492917103,0.101,1704.1,1704.0,9.29136114]
[1693492924184,0.101,1704.1,1704.0,7.14856104]
[1693492924527,5.9692,1704.1,1704.0,1.28002104]
[1693492928843,0.101,1704.1,1704.0,1.28002104]
[1693492939060,0.101,1704.1,1704.0,13.01710104]
[1693492939257,0.101,1704.1,1704.0,15.14024614]
[1693492940547,0.101,1704.1,1704.0,9.27170614]
[1693492943326,0.101,1704.1,1704.0,7.14856104]
[1693492956059,0.101,1704.1,1704.0,13.01710104]
[1693492956259,0.101,1704.1,1704.0,7.14856104]
[1693492967421,0.101,1704.1,1704.0,13.01710104]
[1693492968717,0.101,1704.1,1704.0,7.14856104]
[1693492969299,0.101,1704.1,1704.0,1.28002104]
[1693492969628,12.625077,1704.1,1704.0,1.28002104]
[1693492970126,6.756877,1704.1,1704.0,1.28002104]
[1693492971598,0.888677,1704.1,1704.0,1.28002104]
[1693492972795,6.756877,1704.1,1704.0,1.28002104]
[1693492974486,5.9692,1704.1,1704.0,1.28002104]
[1693492981537,11.8374,1704.1,1704.0,1.28002104]
[1693492984528,12.3174,1704.1,1704.0,1.28002104]
[1693492988048,5.9692,1704.1,1704.0,1.28002104]
[1693492988258,0.101,1704.1,1704.0,1.28002104]
[1693492988553,0.101,1704.1,1704.0,2.24769114]
[1693492988724,0.101,1704.1,1704.0,13.98477114]
[1693492988918,0.101,1704.1,1704.0,21.29431114]
[1693492990853,0.101,1704.1,1704.0,19.85331114]
[1693492996515,0.101,1704.1,1704.0,24.22205444]
[1693492997361,0.101,1704.1,1704.0,31.42298658]
[1693492997518,0.101,1704.1,1704.0,32.86398658]
[1693492997850,0.101,1704.1,1704.0,36.45076593]
[1693492998056,0.101,1704.1,1704.0,40.98084934]
[1693492999020,0.101,1704.1,1704.0,41.59693117]
[1693492999855,0.101,1704.1,1704.0,42.18413117]
[1693493004677,0.101,1704.1,1704.0,41.56804934]
[1693493005050,0.101,1704.1,1704.0,42.18413117]
[1693493005726,0.101,1704.1,1704.0,40.98126999]
[1693493006162,0.101,1704.1,1704.0,39.54026999]
[1693493007127,0.101,1704.1,1704.0,38.01018658]
[1693493008569,0.101,1704.1,1704.0,36.99025444]
[1693493009129,0.101,1704.1,1704.0,38.01013284]
[1693493009445,0.101,1704.1,1704.0,38.01013102]
[1693493017892,0.101,1704.1,1704.0,36.99025444]
[1693493018391,0.101,1704.1,1704.0,38.01015898]
[1693493018693,0.101,1704.1,1704.0,36.99025444]
[1693493019289,0.101,1704.1,1704.0,38.01016001]
[1693493020493,0.101,1704.1,1704.0,17.49971444]
[1693493020787,0.101,1704.1,1704.0,22.40058434]
[1693493021511,0.101,1704.1,1704.0,13.60430104]
[1693493021999,0.101,1704.1,1704.0,19.47284104]
[1693493022897,0.101,1704.1,1704.0,31.04249887]
[1693493023260,0.101,1704.1,1704.0,31.04250413]
[1693493023690,0.101,1704.1,1704.0,41.2472387]
[1693493023890,0.101,1704.1,1704.0,42.77718718]
[1693493029486,0.101,1704.1,1704.0,43.39174896]
[1693493038123,0.101,1704.1,1704.0,37.21074896]
[1693493040000,0.101,1704.1,1704.0,43.39174896]
[1693493048234,0.101,1704.1,1704.0,44.31359163]
[1693493053156,0.101,1704.1,1704.0,43.69902985]
[1693493056661,0.101,1704.1,1704.0,16.18338371]
[1693493056839,0.101,1704.1,1704.0,14.65343523]
[1693493057007,0.101,1704.1,1704.0,14.03702083]
[1693493057412,0.101,1704.1,1704.0,8.16848083]
[1693493057607,0.101,1704.1,1704.0,2.29994083]
[1693493058911,0.101,1704.1,1704.0,8.16848083]
[1693493059111,0.101,1704.1,1704.0,14.03702083]
[1693493061007,0.101,1704.1,1704.0,8.16192547]
[1693493062060,0.101,1704.1,1704.0,8.16731571]
[1693493065326,0.101,1704.1,1704.0,8.16733985]
[1693493066764,0.101,1704.1,1704.0,14.03587985]
[1693493066967,0.101,1704.1,1704.0,18.11582561]
[1693493067766,0.101,1704.1,1704.0,27.52832662]
[1693493068363,0.101,1704.1,1704.0,27.99530708]
[1693493068869,0.101,1704.1,1704.0,28.45814505]
[1693493082475,0.101,1704.1,1704.0,28.93525559]
[1693493085278,0.101,1704.1,1704.0,29.54084493]
[1693493085447,0.101,1704.1,1704.0,28.01092903]
[1693493085842,0.101,1704.1,1704.0,15.48237172]
[1693493086043,0.101,1704.1,1704.0,9.61383172]
[1693493086242,0.101,1704.1,1704.0,8.17283172]
[1693493086679,0.101,1704.1,1704.0,2.30429172]
[1693493087584,0.101,1704.1,1704.0,8.17283172]
[1693493090360,0.101,1704.1,1704.0,2.30429172]
[1693493090569,0.101,1704.1,1704.0,1.28434779]
[1693493090755,0.880689,1704.1,1704.0,1.28434779]
[1693493091170,6.748889,1704.1,1704.0,1.28434779]
[1693493091376,0.880689,1704.1,1704.0,1.28434779]
[1693493092165,6.748889,1704.1,1704.0,1.28434779]
[1693493092759,12.617089,1704.1,1704.0,1.28434779]
[1693493092956,18.485289,1704.1,1704.0,1.28434779]
[1693493093162,13.097089,1704.1,1704.0,1.28434779]
[1693493093459,18.965289,1704.1,1704.0,1.28434779]
[1693493094184,13.097089,1704.1,1704.0,1.28434779]
[1693493095365,13.097089,1704.1,1704.0,0.46822821]
[1693493095564,20.406289,1704.1,1704.0,0.46822821]
[1693493096187,20.406289,1704.1,1704.0,0.00539024]
[1693493096406,23.3340323,1704.1,1704.0,0.00539024]
[1693493097214,23.3340323,1704.1,1703.8,0.81611958]
[1693493097485,2.81340323,1704.0,1703.8,0.81611958]